fUST/lending_fUST_20240728
["ID","MTS","AMOUNT","RATE_DAILY","PERIOD"]
[333453358,1722138661305,273.37336231,9.9e-05,2]
[333453359,1722138670336,231.29461173,9.9e-05,2]
[333453360,1722138670357,42.07875058,9.9e-05,2]
[333453361,1722138678502,207.92124942,9.9e-05,2]
[333453362,1722138678527,65.45211289,9.9e-05,2]
[333453363,1722138687544,273.37336231,9.9e-05,2]
[333453364,1722138687574,200.0,0.0001,2]
[333453365,1722138695784,273.37336231,9.9e-05,2]
[333453366,1722138704973,273.37336231,9.9e-05,2]
[333453367,1722138713107,273.37336231,9.9e-05,2]
[333453368,1722138721562,273.37336231,9.9e-05,2]
[333453369,1722138726935,283.31056371,9.9e-05,2]
[333453370,1722139160273,279.0,0.000233,120]
[333453371,1722139401150,842.75278725,0.00023,120]
[333453372,1722139644145,-1011.02511416,9.425e-05,2]
[333453373,1722139644166,-200.02165418,9.43e-05,2]
[333453374,1722139644186,-200.0,9.43e-05,2]
[333453375,1722139644207,-225.609275,9.52e-05,2]
[333453376,1722139644226,-185.39418498,9.52e-05,2]
[333453377,1722139644247,-135.65975478,9.52e-05,2]
[333453378,1722139654106,-64.34024522,9.52e-05,2]
[333453379,1722139654128,-300.0,9.998e-05,2]
[333453380,1722139654165,-63.45311568,9.998e-05,2]
[333453381,1722139755272,-200.0,9.52e-05,2]
[333453382,1722139755295,-236.54688432,9.898e-05,2]
[333453383,1722139755318,-300.0,9.997e-05,2]
[333453384,1722139755340,-1824.0808832,9.998e-05,2]
[333453385,1722139755361,-13271.31447304,9.998e-05,2]
[333453386,1722139755381,-301.29691076,9.998e-05,2]
[333453387,1722139755402,-183.26599524,9.999e-05,2]
[333453388,1722139755426,-154.78192005,9.999e-05,2]
[333453389,1722139755446,-157.39204075,9.999e-05,2]
[333453390,1722139755468,-942.05026838,9.999e-05,2]
[333453391,1722139755491,-154.88171479,9.999e-05,2]
[333453392,1722139755513,-154.84894058,9.999e-05,2]
[333453393,1722139755534,-154.91726493,9.999e-05,2]
[333453394,1722139755556,-154.82572926,9.999e-05,2]
[333453395,1722139755576,-155.18666141,9.999e-05,2]
[333453396,1722139755595,-227.6977788,9.999e-05,2]
[333453397,1722139755615,-154.98988207,0.0001,2]
[333453398,1722139755635,-154.66746495,0.0001,2]
[333453399,1722139755655,-327.03408422,0.0001,2]
[333453400,1722139755675,-213.28,0.00010959,2]
[333453401,1722139755695,-7136.2593198,0.00011135,2]
[333453402,1722139755716,-192.559879,0.00011467,2]
[333453403,1722139755739,-218.55121616,0.00011539,2]
[333453404,1722139755762,-88.93929819,0.00012065,2]
[333453405,1722139757096,-103.62058081,0.00012065,2]
[333453406,1722139760392,273.37336231,9.9e-05,2]
[333453407,1722139768245,88.09565369,9.9e-05,2]
[333453408,1722139768272,185.27770862,9.9e-05,2]
[333453409,1722139776372,85.1813735,9.9e-05,2]
[333453410,1722139776393,146.37941919,9.9e-05,2]
[333453411,1722139776414,41.81256962,9.9e-05,2]
[333453412,1722139784365,273.37336231,9.9e-05,2]
[333453413,1722139793304,273.37336231,9.9e-05,2]
[333453414,1722139801123,273.37336231,9.9e-05,2]
[333453415,1722139802660,174.23003174,0.000115,2]
[333453416,1722139808283,1000.0,0.00023349,120]
[333453417,1722139809226,273.37336231,9.9e-05,2]
[333453418,1722139818333,273.37336231,9.9e-05,2]
[333453419,1722139827096,33.79173484,9.9e-05,2]
[333453455,1722139832171,-239.58162747,9.9e-05,2]
[333453457,1722139832181,-413.5429716,0.00012822,2]
[333453459,1722139832190,-3669.70474307,0.00013,2]
[333453461,1722139832202,-1004.25000015,0.00013,2]
[333453937,1722139838233,-273.37336231,9.9e-05,2]
[333453938,1722139838246,-2866.91455469,0.00013,2]
[333453939,1722139838256,-337.1697747,0.00013241,2]
[333453940,1722139838267,-413.4416684,0.00013278,2]
[333453941,1722139838277,-237.0,0.00013369,2]
[333453942,1722139838287,-306.0,0.0001337,2]
[333453943,1722139838298,-171.916646,0.00013425,2]
[333453944,1722139838309,-306.0,0.00013478,2]
[333453946,1722139838319,-367.53930497,0.00013561,2]
[333453948,1722139838329,-294.0187007,0.00013644,2]
[333453950,1722139838338,-294.0187007,0.00013644,2]
[333453952,1722139838348,-294.0187007,0.00013644,2]
[333453954,1722139838357,-306.0,0.00013671,2]
[333453956,1722139838367,-11743.43803433,0.00013688,2]
[333454275,1722139842036,-1967.7099831,0.00012507,2]
[333454277,1722139842045,-5308.80312147,0.0001343,2]
[333454279,1722139842055,-55465.85981647,0.00013688,2]
[333454281,1722139842064,-16802.3244627,0.00013689,2]
[333454283,1722139842074,-502.88910819,0.00013698,5]
[333454300,1722139842218,-504.49554909,0.00013698,2]
[333454302,1722139842228,-97.72529334,0.00013698,2]
[333454419,1722139843260,-273.37336231,9.9e-05,2]
[333454421,1722139843270,-422.35362005,0.00013698,2]
[333454423,1722139843280,-509.91050689,0.00013698,2]
[333454425,1722139843291,-501.60236244,0.00013698,2]
[333454427,1722139843301,-500.33149079,0.00013698,2]
[333454429,1722139843310,-500.0,0.00013698,2]
[333454431,1722139843319,-500.0,0.00013698,2]
[333454433,1722139843329,-47.08034139,0.00013698,2]
[333454436,1722139843341,-452.91965861,0.00013698,2]
[333454438,1722139843350,-500.6991607,0.00013698,2]
[333454440,1722139843360,-500.0,0.00013698,2]
[333454442,1722139843370,-500.0,0.00013698,2]
[333454444,1722139843380,-500.0,0.00013698,2]
[333454446,1722139843390,-500.0,0.00013698,2]
[333454448,1722139843399,-500.0,0.00013698,2]
[333454450,1722139843410,-173.22283092,0.00013698,2]
[333454452,1722139843422,-500.0,0.00013698,2]
[333454454,1722139843434,-515.7857069,0.00013698,2]
[333454456,1722139843446,-502.11127882,0.00013698,2]
[333454459,1722139843457,-473.16045154,0.00013698,2]
[333454461,1722139843467,-500.0,0.00013698,2]
[333454463,1722139843480,-500.0,0.00013698,2]
[333454465,1722139843493,-500.0,0.00013698,2]
[333454467,1722139843504,-500.0,0.00013698,2]
[333454469,1722139843515,-501.50442058,0.00013698,2]
[333454471,1722139843526,-500.0,0.00013698,2]
[333454473,1722139843537,-328.07271713,0.00013698,2]
[333454475,1722139843547,-500.0,0.00013698,2]
[333454477,1722139843556,-501.73054263,0.00013698,2]
[333454479,1722139843565,-500.0,0.00013698,2]
[333454481,1722139843574,-500.0,0.00013698,2]
[333454483,1722139843583,-500.0,0.00013698,2]
[333454485,1722139843593,-500.0,0.00013698,2]
[333454487,1722139843603,-500.0,0.00013698,2]
[333454489,1722139843612,-500.0,0.00013698,2]
[333454491,1722139843623,-500.0,0.00013698,2]
[333454494,1722139843635,-264.35422318,0.00013698,2]
[333454496,1722139843648,-527.5562994,0.00013698,2]
[333454498,1722139843659,-503.26545961,0.00013698,2]
[333454500,1722139843670,-500.0,0.00013698,2]
[333454502,1722139843683,-500.0,0.00013698,2]
[333454504,1722139843694,-500.0,0.00013698,2]
[333454507,1722139843704,-502.78765184,0.00013698,2]
[333454509,1722139843714,-500.0,0.00013698,2]
[333454511,1722139843725,-506.17086052,0.00013698,2]
[333454513,1722139843738,-504.79302715,0.00013698,2]
[333454515,1722139843747,-500.0,0.00013698,2]
[333454517,1722139843757,-500.0,0.00013698,2]
[333454519,1722139843766,-1195.05,0.00013698,2]
[333454521,1722139843775,-505.81946245,0.00013698,2]
[333454523,1722139843785,-500.0,0.00013698,2]
[333454525,1722139843795,-500.0,0.00013698,2]
[333454527,1722139843804,-505.31877519,0.00013698,2]
[333454529,1722139843813,-502.29428636,0.00013698,2]
[333454531,1722139843824,-500.0,0.00013698,2]
[333454533,1722139843834,-500.0,0.00013698,2]
[333454535,1722139843844,-500.0,0.00013698,2]
[333454537,1722139843853,-500.0,0.00013698,2]
[333454539,1722139843863,-500.0,0.00013698,2]
[333454541,1722139843872,-500.0,0.00013698,2]
[333454543,1722139843881,-503.17840791,0.00013698,2]
[333454545,1722139843890,-500.0,0.00013698,2]
[333454547,1722139843900,-500.0,0.00013698,2]
[333454549,1722139843909,-603.51210857,0.00013698,2]
[333454551,1722139843923,-500.0,0.00013698,2]
[333454553,1722139843933,-500.0,0.00013698,2]
[333454555,1722139843942,-502.92972677,0.00013698,2]
[333454557,1722139843951,-507.0636712,0.00013698,2]
[333454559,1722139843961,-500.0,0.00013698,2]
[333454561,1722139843970,-232.56848709,0.00013698,2]
[333454564,1722139843980,-501.72412983,0.00013698,2]
[333454566,1722139843991,-502.9115387,0.00013698,2]
[333454568,1722139844001,-501.84595902,0.00013698,2]
[333454570,1722139844010,-503.14079257,0.00013698,2]
[333454572,1722139844019,-500.0,0.00013698,2]
[333454574,1722139844028,-500.0,0.00013698,2]
[333454576,1722139844038,-504.77187067,0.00013698,2]
[333454578,1722139844047,-500.0,0.00013698,2]
[333454579,1722139844057,-517.49677819,0.00013698,2]
[333454581,1722139844067,-500.0,0.00013698,2]
[333454583,1722139844076,-230.16491685,0.00013698,2]
[333454585,1722139844086,-501.32218546,0.00013698,2]
[333454587,1722139844095,-500.0,0.00013698,2]
[333454590,1722139844107,-500.0,0.00013698,2]
[333454592,1722139844117,-624.73544997,0.00013698,2]
[333454594,1722139844128,-505.7949443,0.00013698,2]
[333454596,1722139844140,-500.0,0.00013698,2]
[333454598,1722139844150,-500.0,0.00013698,2]
[333454600,1722139844161,-485.96286451,0.00013698,2]
[333454602,1722139844171,-500.0,0.00013698,2]
[333454604,1722139844183,-500.0,0.00013698,2]
[333454606,1722139844194,-364.32300439,0.00013698,2]
[333454608,1722139844204,-506.04840441,0.00013698,2]
[333454610,1722139844216,-500.0,0.00013698,2]
[333454612,1722139844226,-506.81741044,0.00013698,2]
[333454614,1722139844235,-500.0,0.00013698,2]
[333454616,1722139844245,-500.0,0.00013698,2]
[333454618,1722139844254,-384.67908544,0.00013698,2]
[333454620,1722139844264,-500.0,0.00013698,2]
[333454622,1722139844273,-500.0,0.00013698,2]
[333454624,1722139844283,-500.0,0.00013698,2]
[333454626,1722139844292,-500.0,0.00013698,2]
[333454628,1722139844302,-520.56907541,0.00013698,2]
[333454631,1722139844313,-504.50288948,0.00013698,2]
[333454633,1722139844323,-513.10593296,0.00013698,2]
[333454635,1722139844333,-500.0,0.00013698,2]
[333454637,1722139844343,-500.0,0.00013698,2]
[333454639,1722139844352,-504.31424889,0.00013698,2]
[333454641,1722139844363,-500.0,0.00013698,2]
[333454643,1722139844372,-622.90731333,0.00013698,2]
[333454645,1722139844382,-500.0,0.00013698,2]
[333454647,1722139844391,-505.05967999,0.00013698,2]
[333454648,1722139844400,-500.0,0.00013698,2]
[333454650,1722139844412,-500.0,0.00013698,2]
[333454651,1722139844423,-500.0,0.00013698,2]
[333454654,1722139844435,-502.89503649,0.00013698,2]
[333454656,1722139844446,-613.46410381,0.00013698,2]
[333454657,1722139844458,-500.0,0.00013698,2]
[333454658,1722139844468,-500.0,0.00013698,2]
[333454659,1722139844478,-500.0,0.00013698,2]
[333454660,1722139844489,-502.41763778,0.00013698,2]
[333454661,1722139844500,-500.0,0.00013698,2]
[333454662,1722139844509,-500.0,0.00013698,2]
[333454663,1722139844519,-500.0,0.00013698,2]
[333454664,1722139844528,-500.0,0.00013698,2]
[333454665,1722139844538,-502.59275407,0.00013698,2]
[333454666,1722139844548,-500.0,0.00013698,2]
[333454667,1722139844559,-237.25863991,0.00013698,2]
[333454668,1722139844569,-500.0,0.00013698,2]
[333454669,1722139844579,-500.0,0.00013698,2]
[333454670,1722139844588,-500.0,0.00013698,2]
[333454672,1722139844598,-500.0,0.00013698,2]
[333454674,1722139844609,-500.0,0.00013698,2]
[333454676,1722139844621,-500.0,0.00013698,2]
[333454677,1722139844631,-500.0,0.00013698,2]
[333454679,1722139844642,-500.0,0.00013698,2]
[333454681,1722139844651,-500.0,0.00013698,2]
[333454683,1722139844661,-528.0353339,0.00013698,2]
[333454684,1722139844671,-500.0,0.00013698,2]
[333454685,1722139844680,-504.72731354,0.00013698,2]
[333454687,1722139844690,-500.0,0.00013698,2]
[333454688,1722139844700,-500.0,0.00013698,2]
[333454690,1722139844709,-500.0,0.00013698,2]
[333454691,1722139844718,-500.0,0.00013698,2]
[333454693,1722139844728,-500.0,0.00013698,2]
[333454695,1722139844738,-505.50183349,0.00013698,2]
[333454697,1722139844748,-500.0,0.00013698,2]
[333454698,1722139844758,-500.0,0.00013698,2]
[333454699,1722139844768,-511.9354402,0.00013698,2]
[333454700,1722139844779,-500.0,0.00013698,2]
[333454701,1722139844788,-500.0,0.00013698,2]
[333454702,1722139844797,-500.0,0.00013698,2]
[333454703,1722139844807,-500.0,0.00013698,2]
[333454704,1722139844817,-500.0,0.00013698,2]
[333454705,1722139844826,-500.0,0.00013698,2]
[333454706,1722139844836,-500.0,0.00013698,2]
[333454707,1722139844845,-515.72241009,0.00013698,2]
[333454708,1722139844855,-500.69240791,0.00013698,2]
[333454709,1722139844865,-158.27369891,0.00013698,2]
[333454734,1722139846218,-294.0187007,0.000134,2]
[333454736,1722139846229,-30.1212993,0.00013698,2]
[333454747,1722140849151,-428.04082726,9.415e-05,2]
[333454748,1722140849172,-938.71580109,9.999e-05,2]
[333454749,1722140851150,-3.33446729,9.999e-05,2]
[333454750,1722140851171,-154.66746495,0.0001,2]
[333454751,1722140851194,-294.4,0.00010959,2]
[333454752,1722140851216,-1274.234118,0.00012101,2]
[333454753,1722140851239,-250.0000008,0.00012463,2]
[333454754,1722140851261,-175.928553,0.00013425,2]
[333454755,1722140851283,-505.57198523,0.00013563,2]
[333454756,1722140852086,-241.979422,0.00013563,2]
[333454757,1722140949135,-273.37336231,9.9e-05,2]
[333454758,1722140949156,-459.37749334,9.999e-05,2]
[333454759,1722140949178,-257.53,0.00010959,2]
[333454760,1722140954755,225.6692646,9.9e-05,2]
[333454761,1722140954780,47.70409771,9.9e-05,2]
[333454762,1722140963257,153.7083703,9.9e-05,2]
[333454763,1722140963279,119.66499201,9.9e-05,2]
[333454764,1722140971443,130.33500799,9.9e-05,2]
[333454765,1722140971467,143.03835432,9.9e-05,2]
[333454766,1722140979965,261.1787673,9.9e-05,2]
[333454767,1722140979988,12.19459501,9.9e-05,2]
[333454769,1722140988413,273.37336231,9.9e-05,2]
[333454770,1722140996354,273.37336231,9.9e-05,2]
[333454775,1722141005807,273.37336231,9.9e-05,2]
[333454776,1722141014271,273.37336231,9.9e-05,2]
[333454777,1722141022608,273.37336231,9.9e-05,2]
[333454778,1722141031337,84.98650201,9.9e-05,2]
[333454832,1722141032632,-188.3868603,9.9e-05,2]
[333454834,1722141032642,-300.0,0.00012999,2]
[333454835,1722141032652,-2907.51409785,0.00013,2]
[333454967,1722141038309,-4598.2762932,0.00013,2]
[333454974,1722141038372,-4499.84604097,0.00013,2]
[333454976,1722141038382,-175.253688,0.00013425,2]
[333454978,1722141038392,-367.53930498,0.00013501,2]
[333454980,1722141038402,-2874.30044189,0.00013598,2]
[333454982,1722141038411,-325.26053916,0.00013598,2]
[333454998,1722141038697,-219.10388087,0.00013598,2]
[333454999,1722141038712,-326.17084034,0.00013598,2]
[333455000,1722141038722,-294.0187007,0.000136,2]
[333455001,1722141038732,-415.2554635,0.000136,2]
[333455002,1722141038744,-153.0,0.000136,2]
[333455003,1722141038753,-2171.07544038,0.00013688,2]
[333455007,1722141042206,-273.37336231,9.9e-05,2]
[333455008,1722141042216,-615.62765671,0.00013688,2]
[333455009,1722141042228,-3973.60055706,0.00013688,2]
[333455010,1722141042241,-47007.13462655,0.00013688,2]
[333455011,1722141042250,-502.88910819,0.00013698,5]
[333455012,1722141042259,-504.49554909,0.00013698,2]
[333455013,1722141042269,-500.0,0.00013698,2]
[333455014,1722141042278,-500.0,0.00013698,2]
[333455015,1722141042289,-500.0,0.00013698,2]
[333455016,1722141042298,-500.0,0.00013698,2]
[333455017,1722141042308,-500.0,0.00013698,2]
[333455018,1722141042317,-500.0,0.00013698,2]
[333455019,1722141042441,-500.0,0.00013698,2]
[333455020,1722141042452,-473.60055706,0.00013698,2]
[333455021,1722141042466,-500.0,0.00013698,2]
[333455022,1722141042477,-500.0,0.00013698,2]
[333455023,1722141042487,-500.0,0.00013698,2]
[333455024,1722141042497,-507.93967045,0.00013698,2]
[333455025,1722141042507,-500.0,0.00013698,2]
[333455026,1722141042518,-500.0,0.00013698,2]
[333455027,1722141042528,-500.0,0.00013698,2]
[333455028,1722141042537,-500.0,0.00013698,2]
[333455029,1722141042547,-500.0,0.00013698,2]
[333455030,1722141042557,-506.12596428,0.00013698,2]
[333455031,1722141042567,-507.16405368,0.00013698,2]
[333455032,1722141042578,-500.0,0.00013698,2]
[333455033,1722141042588,-500.0,0.00013698,2]
[333455034,1722141042598,-500.0,0.00013698,2]
[333455035,1722141042610,-500.0,0.00013698,2]
[333455036,1722141042620,-327.07571737,0.00013698,2]
[333455037,1722141042629,-500.0,0.00013698,2]
[333455038,1722141042639,-500.0,0.00013698,2]
[333455039,1722141042649,-500.0,0.00013698,2]
[333455040,1722141042659,-500.0,0.00013698,2]
[333455041,1722141042669,-500.0,0.00013698,2]
[333455042,1722141042679,-500.0,0.00013698,2]
[333455043,1722141042689,-500.0,0.00013698,2]
[333455044,1722141042699,-500.0,0.00013698,2]
[333455045,1722141042709,-500.0,0.00013698,2]
[333455046,1722141042719,-500.0,0.00013698,2]
[333455047,1722141042728,-502.56126273,0.00013698,2]
[333455048,1722141042738,-500.0,0.00013698,2]
[333455049,1722141042747,-501.84478942,0.00013698,2]
[333455050,1722141042757,-500.0,0.00013698,2]
[333455051,1722141042767,-500.0,0.00013698,2]
[333455052,1722141042777,-500.0,0.00013698,2]
[333455053,1722141042787,-500.0,0.00013698,2]
[333455054,1722141042797,-500.86351952,0.00013698,2]
[333455055,1722141042806,-500.0,0.00013698,2]
[333455057,1722141042816,-500.0,0.00013698,2]
[333455059,1722141042825,-339.16216401,0.00013698,2]
[333455061,1722141042837,-500.0,0.00013698,2]
[333455062,1722141042847,-500.0,0.00013698,2]
[333455063,1722141042856,-500.0,0.00013698,2]
[333455064,1722141042866,-563.046754,0.00013698,2]
[333455065,1722141042877,-500.0,0.00013698,2]
[333455066,1722141042887,-525.65982611,0.00013698,2]
[333455067,1722141042897,-103.73066733,0.00013698,2]
[333455224,1722141047725,-273.37336231,9.9e-05,2]
[333455226,1722141047734,-396.26933267,0.00013698,2]
[333455228,1722141047744,-500.0,0.00013698,2]
[333455230,1722141047755,-500.0,0.00013698,2]
[333455232,1722141047764,-501.10604928,0.00013698,2]
[333455234,1722141047773,-502.55754385,0.00013698,2]
[333455236,1722141047782,-504.84749874,0.00013698,2]
[333455239,1722141047792,-500.0,0.00013698,2]
[333455241,1722141047801,-500.0,0.00013698,2]
[333455243,1722141047810,-500.81926885,0.00013698,2]
[333455245,1722141047819,-501.87125834,0.00013698,2]
[333455247,1722141047828,-246.04909782,0.00013698,2]
[333455388,1722142031270,-329.81215211,9.524e-05,2]
[333455389,1722142031292,-170.05998711,9.62e-05,2]
[333455390,1722142031313,-159.752165,9.62e-05,2]
[333455391,1722142031335,-296.64425394,0.0001,2]
[333455392,1722142031356,-115.46669281,0.0001,2]
[333455393,1722142047152,-312.57413445,9.9e-05,2]
[333455394,1722142047178,-39.20077214,0.0001,2]
[333455395,1722142047204,-158.63473,0.00012369,2]
[333455396,1722142047230,-158.63473,0.00012476,2]
[333455397,1722142047255,-158.63473,0.00012583,2]
[333455398,1722142047278,-158.63473,0.00012691,2]
[333455399,1722142047301,-158.63473,0.00012798,2]
[333455400,1722142047321,-158.63473,0.00012906,2]
[333455401,1722142047344,-239.2336341,0.00012978,2]
[333455402,1722142047366,-158.63473,0.00013013,2]
[333455403,1722142047387,-153.0,0.00013041,2]
[333455404,1722142047407,-294.0187007,0.000131,2]
[333455405,1722142047427,-586.9832245,0.00013112,2]
[333455406,1722142047451,-154.3185983,0.00013178,2]
[333455407,1722142047474,-131.14360841,0.000132,2]
[333455408,1722142050139,-200.00663359,0.000132,2]
[333455409,1722142050161,-36.71187341,0.0001329,2]
[333455410,1722142147087,-273.37336231,9.9e-05,2]
[333455411,1722142147110,-201.41613914,9.9e-05,2]
[333455412,1722142147136,-794.02048447,9.999e-05,2]
[333455413,1722142147158,-156.56974181,9.999e-05,2]
[333455414,1722142147180,-332.56884732,9.999e-05,2]
[333455415,1722142147202,-332.56884732,9.999e-05,2]
[333455416,1722142151154,247.13449397,9.801e-05,2]
[333455417,1722142151176,190.48257763,9.801e-05,2]
[333455418,1722142155109,-37.17242985,9.801e-05,2]
[333455419,1722142159071,273.37336231,9.9e-05,2]
[333455420,1722142167852,269.79221426,9.9e-05,2]
[333455421,1722142167877,3.58114805,9.9e-05,2]
[333455422,1722142175714,273.37336231,9.9e-05,2]
[333455423,1722142183832,273.37336231,9.9e-05,2]
[333455424,1722142191723,273.37336231,9.9e-05,2]
[333455425,1722142199896,273.37336231,9.9e-05,2]
[333455426,1722142207723,273.37336231,9.9e-05,2]
[333455427,1722142214815,162.68239683,0.00012,2]
[333455428,1722142215965,262.82757015,9.9e-05,2]
[333455650,1722142238505,-10.54579216,9.9e-05,2]
[333455651,1722142238515,-120.62816688,0.00012,2]
[333455652,1722142238524,-97.88844988,0.0001329,2]
[333455672,1722142243480,-200.0,9.9e-05,2]
[333455673,1722142243490,-773.16663206,0.0001329,2]
[333455674,1722142243501,-175.253688,0.00013425,2]
[333455675,1722142243512,-274.6491561,0.00013561,2]
[333455676,1722142243522,-1824.13052384,0.00013598,2]
[333455682,1722142248163,-273.37336231,9.9e-05,2]
[333455683,1722142248173,-475.30982968,0.00013598,2]
[333455684,1722142248182,-5308.80312147,0.00013617,2]
[333455685,1722142248192,-2299.44035348,0.00013667,2]
[333455686,1722142248201,-2106.7026092,0.00013688,2]
[333455687,1722143231149,-1073.7368603,9.415e-05,2]
[333455688,1722143231172,-200.0,9.42e-05,2]
[333455689,1722143231193,-200.0,9.51e-05,2]
[333455690,1722143231214,-201.63549799,9.51e-05,2]
[333455691,1722143231236,-198.728,9.51e-05,2]
[333455692,1722143231257,-200.0,9.61e-05,2]
[333455693,1722143231280,-133.60962481,9.998e-05,2]
[333455694,1722143233104,-166.39037519,9.998e-05,2]
[333455695,1722143233125,-300.0,9.998e-05,2]
[333455696,1722143233147,-214.73970325,9.999e-05,2]
[333455697,1722143233168,-370.31403064,9.999e-05,2]
[333455698,1722143233189,-266.70119659,9.999e-05,2]
[333455699,1722143233326,-404.01255801,9.999e-05,2]
[333455700,1722143233348,-621.26498537,9.999e-05,2]
[333455701,1722143244218,-105.82467374,9.999e-05,2]
[333455702,1722143244243,-287.60472243,0.0001,2]
[333455703,1722143244268,-154.66746495,0.0001,2]
[333455704,1722143244293,-2.29313888,0.0001098,2]
[333455705,1722143346136,-273.37336231,9.9e-05,2]
[333455706,1722143346159,-201.36203189,9.9e-05,2]
[333455707,1722143346179,-200.02165418,9.9e-05,2]
[333455708,1722143346200,-225.609275,9.9e-05,2]
[333455709,1722143346220,-333.55988557,9.999e-05,2]
[333455710,1722143346242,-341.84161605,9.999e-05,2]
[333455711,1722143346264,-166.666666,0.00011938,2]
[333455712,1722143346285,-166.666666,0.00012016,2]
[333455713,1722143346306,-166.666666,0.00012094,2]
[333455714,1722143346326,-166.666666,0.00012171,2]
[333455715,1722143346346,-166.666666,0.00012249,2]
[333455716,1722143346366,-166.666666,0.00012327,2]
[333455717,1722143346388,-166.666666,0.00012405,2]
[333455718,1722143346410,-166.666666,0.00012482,2]
[333455719,1722143346431,-166.666666,0.0001256,2]
[333455720,1722143353010,224.002181,9.9e-05,2]
[333455721,1722143353033,49.37118131,9.9e-05,2]
[333455722,1722143354593,135.00202435,0.0001,2]
[333455723,1722143354615,63.06944407,0.0001,2]
[333455724,1722143360909,273.37336231,9.9e-05,2]
[333455725,1722143369121,273.37336231,9.9e-05,2]
[333455726,1722143377063,273.37336231,9.9e-05,2]
[333455727,1722143387459,273.37336231,9.9e-05,2]
[333455728,1722143396381,273.37336231,9.9e-05,2]
[333455729,1722143404562,273.37336231,9.9e-05,2]
[333455730,1722143404878,185.39418498,0.0001,2]
[333455731,1722143412542,273.37336231,9.9e-05,2]
[333455732,1722143421325,273.37336231,9.9e-05,2]
[333455733,1722143429535,273.37336231,9.9e-05,2]
[333455869,1722143434033,-250.0,0.00013369,2]
[333455870,1722143434047,-301.97527466,0.00013369,2]
[333455871,1722143437709,70.28611016,9.9e-05,2]
[333455872,1722143437734,203.08725215,9.9e-05,2]
[333456041,1722143447592,-4756.82784681,0.00013369,2]
[333456042,1722143447605,-175.253688,0.00013425,2]
[333456043,1722143447615,-274.6491562,0.00013561,2]
[333456044,1722143447624,-300.0,0.00013597,2]
[333456045,1722143447635,-761.71835285,0.00013598,2]
[333456046,1722143447644,-1379.66421212,0.00013598,2]
[333456047,1722143447654,-1379.66421208,0.00013666,2]
[333456048,1722143447663,-4458.82253194,0.00013678,2]
[333456049,1722143447901,46.91274785,9.9e-05,2]
[333456050,1722143447924,226.46061446,9.9e-05,2]
[333456078,1722143448955,-676.0,0.00013678,2]
[333456081,1722143453719,273.37336231,9.9e-05,2]
[333456082,1722143471292,1000.0,0.00023349,120]
[333456083,1722143478389,194.26693667,9.999e-05,2]
[333456084,1722143496110,155.08928424,0.00012,2]
[333456120,1722144090183,544.0,0.00023,120]
[333456122,1722144158157,2000.0,0.00023,120]
[333456139,1722144432120,-194.37379558,9.898e-05,2]
[333456140,1722144432142,-300.0,9.998e-05,2]
[333456141,1722144432162,-208.64474095,9.999e-05,2]
[333456142,1722144432183,-205.27920889,9.999e-05,2]
[333456143,1722144432203,-322.45540982,9.999e-05,2]
[333456144,1722144432224,-244.70182161,9.999e-05,2]
[333456145,1722144432245,-305.78163583,9.999e-05,2]
[333456146,1722144432265,-249.21958783,9.999e-05,2]
[333456147,1722144432285,-240.65823686,9.999e-05,2]
[333456148,1722144432311,-224.05123896,9.999e-05,2]
[333456149,1722144432335,-358.09,0.00010959,2]
[333456150,1722144432355,-420.0,0.00010998,2]
[333456151,1722144432378,-176.810294,0.00011846,2]
[333456152,1722144432401,-348.0,0.00012098,2]
[333456153,1722144432424,-176.810294,0.00012463,2]
[333456154,1722144432448,-1123.08606368,0.00013253,2]
[333456171,1722144454116,-603.44980549,0.00013253,2]
[333456174,1722144547102,-273.37336231,9.9e-05,2]